bitfinex-derivatives/quotes_BNBF0:USTF0_20251027
["timestamp","ask_amount","ask_price","bid_price","bid_amount"]
[1761599579316,0.63956985,1144.4,1141.8,0.63960835]
[1761599579620,0.63956985,1144.4,1141.9,0.63960835]
[1761599580118,0.63956985,1144.4,1141.8,0.63960835]
[1761599580621,0.63956985,1144.3,1141.9,0.63960835]
[1761599581817,0.63956985,1144.4,1142.1,0.63960835]
[1761599582421,2.2532143,1144.8,1142.2,0.63960835]
[1761599582422,0.63956985,1144.3,1142.2,0.63960835]
[1761599582722,0.63956985,1144.4,1142.1,0.63960835]
[1761599583519,0.63956985,1144.4,1142.2,0.63960835]
[1761599583718,0.63956985,1144.3,1142.2,0.63960835]
[1761599585223,0.63956985,1144.2,1142.3,0.63960835]
[1761599586324,0.63956985,1144.1,1142.4,0.63960835]
[1761599587421,0.63956985,1144.0,1142.5,0.63960835]
[1761599592533,0.63956985,1143.9,1142.6,0.63960835]
[1761599594231,0.63956985,1143.8,1142.6,0.63960835]
[1761599595435,0.63956985,1143.8,1142.7,0.63960835]
[1761599595632,0.63956985,1143.8,1142.6,0.63960835]
[1761599596035,0.86076064,1144.1,1142.4,0.86794759]
[1761599596236,0.65347954,1143.8,1142.7,0.65312181]
[1761599598437,0.65347954,1143.9,1142.8,0.65312181]
[1761599603143,0.65347954,1143.9,1142.9,0.65312181]
[1761599603341,0.65347954,1143.8,1142.9,0.65312181]
[1761599608843,0.65347954,1143.9,1142.9,0.65312181]
[1761599610646,0.65347954,1144.3,1142.7,0.65312181]
[1761599610941,0.65347954,1144.2,1142.6,0.65312181]
[1761599611944,0.86076064,1144.6,1142.2,0.86794759]
[1761599612143,0.65415985,1144.2,1142.6,0.65378171]
[1761599614749,0.65415985,1144.2,1142.7,0.65378171]
[1761599615054,0.65415985,1144.3,1142.7,0.65378171]
[1761599620756,0.65415985,1144.2,1142.8,0.65378171]
[1761599624354,0.65415985,1144.2,1142.7,0.65378171]
[1761599625057,0.65415985,1144.1,1142.8,0.65378171]
[1761599625261,0.65415985,1144.2,1142.7,0.65378171]
[1761599626860,0.924,1144.1,1142.7,0.65378171]
[1761599628363,0.924,1144.1,1142.6,0.65378171]
[1761599630364,1.57815985,1144.1,1142.6,0.65378171]
[1761599635169,1.57815985,1144.1,1142.7,0.65378171]
[1761599635170,0.65415985,1144.0,1142.7,0.65378171]
[1761599638070,0.65415985,1143.9,1142.7,0.65378171]
[1761599638269,0.65415985,1143.8,1142.8,0.65378171]
[1761599638467,0.65415985,1143.8,1142.6,0.86794759]
[1761599638468,0.65415985,1143.8,1142.6,0.65378171]
[1761599640368,0.924,1144.1,1142.6,0.65378171]
[1761599640369,0.65415985,1143.9,1142.6,0.65378171]
[1761599641569,0.65415985,1143.9,1141.7,0.15233159]
[1761599641570,0.65415985,1143.8,1142.7,0.65378171]
[1761599641869,0.65415985,1143.9,1142.8,0.65378171]
[1761599645478,0.65415985,1143.9,1142.7,0.65378171]
[1761599646478,0.65415985,1143.9,1142.8,0.65378171]
[1761599650284,0.65415985,1143.8,1142.8,0.65378171]
[1761599650480,0.65415985,1143.8,1142.9,0.65378171]
[1761599650982,0.65415985,1143.8,1142.8,0.65378171]
[1761599651383,0.65415985,1143.9,1142.8,0.65378171]
[1761599652285,0.65415985,1143.8,1142.8,0.65378171]
[1761599653585,0.65415985,1143.9,1142.9,0.65378171]
[1761599653886,0.637,1143.8,1142.9,0.65378171]
[1761599654286,1.29115985,1143.8,1142.9,0.65378171]
[1761599655181,0.637,1143.8,1142.9,0.65378171]
[1761599656387,1.29115985,1143.8,1142.9,0.65378171]
[1761599658489,0.637,1143.8,1142.9,0.65378171]
[1761599659486,1.29115985,1143.8,1142.9,0.65378171]
[1761599660890,1.29115985,1143.8,1143.0,0.65378171]
[1761599662892,1.29115985,1143.8,1142.8,0.86794759]
[1761599662893,1.29115985,1143.8,1143.1,0.65378171]
[1761599664691,0.637,1143.8,1143.2,0.65378171]
[1761599664988,0.637,1143.8,1143.3,0.65378171]
[1761599665993,0.637,1143.8,1143.4,0.65378171]
[1761599668187,0.637,1143.8,1143.3,0.65378171]
[1761599674196,0.637,1143.8,1143.2,0.65378171]
[1761599675597,0.637,1143.8,1143.3,0.65378171]
[1761599676398,0.637,1143.8,1143.2,0.65378171]
[1761599676997,0.637,1143.8,1143.3,0.65378171]
[1761599677198,0.637,1143.8,1143.2,0.65378171]
[1761599677698,0.637,1143.8,1143.4,0.65378171]
[1761599678499,0.637,1143.8,1143.3,0.65378171]
[1761599680700,0.637,1143.8,1143.2,0.65378171]
[1761599685803,0.65415985,1145.0,1143.2,0.65378171]
[1761599688204,0.981,1144.9,1143.2,0.65378171]
[1761599688403,0.981,1144.9,1143.3,0.65378171]
[1761599689304,0.981,1144.9,1143.2,0.65378171]
[1761599689502,0.981,1144.9,1143.3,0.65378171]
[1761599689704,0.981,1144.9,1143.2,0.65378171]
[1761599690506,1.63515985,1144.9,1143.3,0.65378171]
[1761599691705,0.981,1144.9,1143.3,0.65378171]
[1761599692804,0.981,1144.9,1143.2,0.65378171]
[1761599698709,0.981,1144.9,1143.3,0.65378171]
[1761599699208,0.981,1144.9,1143.2,0.65378171]
[1761599699411,0.981,1144.9,1143.3,0.65378171]
[1761599701213,0.981,1144.9,1143.2,0.65378171]
[1761599701510,0.981,1144.9,1143.3,0.65378171]
[1761599702015,0.981,1144.9,1143.1,0.65378171]
[1761599705419,0.65415985,1144.6,1142.9,0.65378171]
[1761599705618,0.65415985,1144.6,1142.6,1.2964002]
[1761599705619,0.65415985,1144.4,1142.6,0.65378171]
[1761599705818,0.65415985,1144.4,1142.4,0.86794759]
[1761599705819,0.65415985,1144.2,1142.5,0.65378171]
[1761599706215,0.65415985,1144.1,1142.3,0.65378171]
[1761599707216,0.65415985,1144.1,1142.4,0.65378171]
[1761599707420,0.65415985,1144.1,1142.3,0.65378171]
[1761599709518,0.65415985,1144.0,1142.0,0.65378171]
[1761599710221,0.65415985,1144.0,1142.1,0.65378171]
[1761599712322,0.65415985,1144.1,1142.0,0.65378171]
[1761599712618,0.65415985,1144.0,1142.0,0.65378171]
[1761599713318,0.65415985,1144.1,1142.0,0.65378171]
[1761599715723,0.65415985,1144.1,1141.9,0.65378171]
[1761599716524,0.65415985,1144.0,1141.9,0.65378171]
[1761599717823,0.659,1143.9,1141.9,0.65378171]
[1761599719225,1.31315985,1143.9,1141.9,0.65378171]
[1761599719519,0.659,1143.9,1141.9,0.65378171]
[1761599724524,0.659,1143.9,1141.8,0.65378171]
[1761599724725,0.659,1143.9,1141.9,0.65378171]
[1761599725830,0.659,1143.9,1141.8,0.65378171]
[1761599726028,0.65415985,1143.8,1141.0,0.65378171]
[1761599726227,0.65415985,1143.5,1141.7,0.15230426]
[1761599726731,0.65415985,1143.4,1141.7,0.15230426]
[1761599728330,0.65415985,1143.5,1141.7,0.15230426]
[1761599729530,0.65415985,1143.6,1141.7,0.15230426]
[1761599729732,0.65415985,1143.5,1141.7,0.15230426]
[1761599730338,0.65415985,1143.5,1140.9,0.65378171]
[1761599730638,0.65415985,1143.5,1141.6,0.15236327]
[1761599732234,0.65415985,1143.6,1141.6,0.15236327]
[1761599733339,1.045,1143.5,1141.6,0.15236327]
[1761599740238,1.045,1143.5,1140.4,0.65378171]
[1761599740443,1.045,1143.5,1141.4,0.15239663]
[1761599740840,1.045,1143.5,1140.3,0.65378171]
[1761599741038,1.045,1143.5,1141.4,0.15239663]
[1761599741241,1.69915985,1143.5,1140.4,0.65378171]
[1761599741440,1.69915985,1143.5,1140.3,0.65378171]
[1761599741640,1.69915985,1143.5,1141.3,0.15240131]
[1761599741840,1.69915985,1143.5,1140.3,0.65378171]
[1761599742041,1.69915985,1143.5,1141.3,0.15240131]
[1761599742544,1.69915985,1143.5,1140.3,0.65378171]
[1761599742742,1.69915985,1143.5,1141.3,0.15240131]
[1761599742943,1.69915985,1143.5,1140.3,0.65378171]
[1761599743345,1.69915985,1143.5,1141.3,0.15240197]
[1761599743542,1.69915985,1143.5,1140.3,0.65378171]
[1761599743841,1.69915985,1143.5,1141.3,0.15239997]
[1761599744042,1.69915985,1143.5,1140.3,0.65378171]
[1761599744346,1.69915985,1143.5,1141.3,0.15239997]
[1761599744646,1.69915985,1143.5,1140.3,0.65378171]
[1761599744946,1.69915985,1143.5,1141.3,0.15240064]
[1761599745146,1.69915985,1143.5,1140.3,0.65378171]
[1761599745347,1.69915985,1143.5,1141.3,0.15240064]
[1761599745649,1.69915985,1143.5,1140.3,0.65378171]
[1761599745944,1.69915985,1143.5,1141.3,0.15240064]
[1761599746148,1.69915985,1143.5,1140.3,0.65378171]
[1761599746444,1.69915985,1143.5,1141.3,0.15240064]
[1761599746745,1.69915985,1143.5,1140.3,0.65378171]
[1761599747045,1.69915985,1143.5,1141.3,0.15240064]
[1761599747248,1.69915985,1143.5,1140.3,0.65378171]
[1761599747649,1.69915985,1143.5,1141.3,0.15240064]
[1761599747945,1.69915985,1143.5,1140.3,0.65378171]
[1761599748249,1.69915985,1143.5,1141.3,0.15240064]
[1761599748445,1.69915985,1143.5,1140.3,0.65378171]
[1761599748645,1.69915985,1143.5,1141.0,0.15240064]
[1761599751347,0.65415985,1143.5,1141.0,0.15240064]
[1761599752952,0.65415985,1143.4,1141.0,0.15240064]
[1761599754546,0.656,1143.3,1141.0,0.15240064]
[1761599755253,1.31015985,1143.3,1141.0,0.15240064]
[1761599756557,0.656,1143.3,1141.0,0.15240064]
[1761599756852,1.31015985,1143.3,1141.0,0.15240064]
[1761599757058,0.65415985,1143.2,1141.0,0.15240064]
[1761599758257,0.65415985,1143.1,1141.0,0.15240064]
[1761599762561,0.65415985,1143.0,1141.0,0.15240064]
[1761599762764,0.65415985,1143.1,1141.0,0.15240064]
[1761599764465,0.65415985,1143.2,1141.0,0.15240064]
[1761599765067,0.65415985,1142.7,1141.0,0.15240064]
[1761599765665,0.65415985,1142.9,1141.0,0.15240064]
[1761599772068,0.65415985,1142.8,1141.0,0.15240064]
[1761599773270,0.65415985,1142.7,1141.0,0.15240064]
[1761599775370,0.65415985,1142.6,1141.0,0.15240064]
[1761599776767,0.65415985,1142.7,1141.0,0.15240064]
[1761599776968,0.65415985,1142.8,1141.0,0.15240064]
[1761599777166,0.65415985,1143.0,1141.0,0.15240064]
[1761599777366,0.65415985,1142.9,1141.0,0.15240064]
[1761599779870,0.65415985,1143.0,1141.0,0.15240064]
[1761599780372,0.65415985,1142.9,1141.0,0.15240064]
[1761599782471,0.65415985,1142.8,1141.0,0.15240064]
[1761599784474,0.65415985,1142.7,1141.0,0.80618235]
[1761599785373,0.65415985,1142.6,1141.1,0.65378171]
[1761599785776,0.65415985,1142.7,1141.1,0.65378171]
[1761599790777,0.65415985,1142.5,1141.3,0.65378171]
[1761599790982,0.65415985,1142.6,1141.4,0.65378171]
[1761599791182,0.65415985,1143.0,1141.5,0.65378171]
[1761599791679,0.65415985,1142.9,1141.5,0.65378171]
[1761599792081,0.65415985,1143.0,1141.5,0.65378171]
[1761599793478,0.65415985,1143.1,1141.6,0.65378171]
[1761599793983,0.65415985,1143.0,1141.7,0.65378171]
[1761599794580,0.65415985,1143.1,1141.6,0.65378171]
[1761599796685,0.65415985,1143.2,1141.6,0.65378171]
[1761599796984,0.65415985,1143.4,1141.7,0.65378171]
[1761599797185,0.65415985,1143.3,1141.7,0.65378171]
[1761599797784,0.65415985,1143.3,1141.8,0.65378171]
[1761599798286,0.899,1143.2,1141.7,0.65378171]
[1761599799386,0.899,1143.2,1141.8,0.65378171]
[1761599800386,0.899,1143.2,1141.7,0.65378171]
[1761599803591,0.899,1143.2,1141.8,0.65378171]
[1761599803791,0.899,1143.2,1141.9,0.65378171]
[1761599804989,0.899,1143.2,1142.0,0.65378171]
[1761599805190,0.899,1143.2,1141.9,0.65378171]
[1761599805788,0.899,1143.2,1141.8,0.86794759]
[1761599805789,0.899,1143.2,1142.0,0.65378171]
[1761599806388,0.899,1143.2,1141.9,0.65378171]
[1761599806888,0.899,1143.2,1142.2,0.65378171]
[1761599807092,0.899,1143.2,1142.1,0.65378171]
[1761599807293,0.899,1143.2,1142.0,0.65378171]
[1761599808989,0.899,1143.2,1141.7,0.86794759]
[1761599808990,0.899,1143.2,1142.1,0.65378171]
[1761599809194,0.899,1143.2,1142.2,0.65378171]
[1761599809595,0.899,1143.2,1142.0,0.65378171]
[1761599810205,0.899,1143.2,1141.9,0.65378171]
[1761599811796,0.899,1143.2,1142.1,0.65378171]
[1761599815202,0.899,1143.2,1142.0,0.65378171]
[1761599816098,0.899,1143.2,1142.1,0.65378171]
[1761599816602,0.899,1143.2,1142.0,0.65378171]
[1761599819701,0.899,1143.2,1141.8,0.86794759]
[1761599819702,0.899,1143.2,1141.8,0.65378171]
[1761599819901,0.899,1143.2,1141.7,0.65378171]
[1761599826321,0.65415985,1144.2,1141.7,0.65378171]
[1761599826506,0.65415985,1144.2,1141.8,0.65378171]
[1761599826808,0.65415985,1144.4,1141.9,0.65378171]
[1761599828710,0.65415985,1144.5,1142.0,0.65378171]
[1761599829006,0.65415985,1144.5,1142.1,0.65378171]
[1761599829209,1.33815985,1144.5,1142.1,0.65378171]
[1761599829811,0.684,1144.5,1142.1,0.65378171]
[1761599830607,0.684,1144.5,1141.8,0.65378171]
[1761599830908,0.684,1144.5,1141.5,0.65378171]
[1761599831110,1.33815985,1144.5,1141.5,0.65378171]
[1761599833109,1.33815985,1144.5,1141.6,0.65378171]
[1761599833315,0.65415985,1144.4,1141.6,0.65378171]
[1761599837115,0.65415985,1144.3,1141.6,0.65378171]
[1761599837519,0.65415985,1144.4,1141.7,0.65378171]
[1761599838319,0.65415985,1144.3,1141.7,0.65378171]
[1761599840420,0.65415985,1144.1,1141.8,0.65378171]
[1761599840920,0.65415985,1143.9,1141.6,0.65378171]
[1761599841116,0.65415985,1143.9,1141.7,0.65378171]
[1761599842315,0.65415985,1143.8,1141.7,0.65378171]
[1761599842520,0.65415985,1144.2,1141.9,0.65378171]
[1761599843120,0.65415985,1144.2,1142.0,0.65378171]
[1761599843320,0.65415985,1144.2,1142.2,0.65378171]
[1761599845122,0.65415985,1144.1,1142.3,0.65378171]
[1761599847618,0.65415985,1144.3,1142.3,0.65378171]
[1761599847823,1.33815985,1144.5,1142.4,0.65378171]
[1761599848119,0.65415985,1144.4,1142.4,0.65378171]
[1761599849019,0.65415985,1144.4,1142.3,0.65378171]
[1761599850125,0.65415985,1144.4,1142.4,0.65378171]
[1761599850525,0.65415985,1144.0,1142.1,0.65378171]
[1761599851322,0.65415985,1143.7,1142.1,0.65378171]
[1761599852828,0.65415985,1143.6,1142.1,0.65378171]
[1761599853028,0.65415985,1143.8,1142.2,0.65378171]
[1761599853327,0.65415985,1143.8,1142.0,0.86794759]
[1761599853328,0.65415985,1143.8,1142.3,0.65378171]
[1761599854127,0.65415985,1143.7,1142.3,0.65378171]
[1761599854928,0.86076064,1144.0,1142.3,0.65378171]
[1761599854929,0.65415985,1143.8,1142.3,0.65378171]
[1761599855129,0.65415985,1143.7,1142.3,0.65378171]
[1761599857431,0.65415985,1143.8,1142.3,0.65378171]
[1761599858133,0.65415985,1143.7,1142.3,0.65378171]
[1761599858629,0.65415985,1143.8,1142.2,0.65378171]
[1761599858833,0.65415985,1143.7,1142.2,0.65378171]
[1761599859829,0.65415985,1143.6,1142.2,0.65378171]
[1761599860033,0.65415985,1143.5,1142.2,0.65378171]
[1761599861131,0.65415985,1143.6,1142.2,0.65378171]
[1761599861335,0.65415985,1143.5,1142.2,0.65378171]
[1761599862234,0.65415985,1143.7,1142.1,0.65378171]
[1761599864136,0.86076064,1144.0,1142.1,0.65378171]
[1761599864137,0.65415985,1143.6,1142.1,0.65378171]
[1761599864339,0.65415985,1143.7,1142.1,0.65378171]
[1761599865339,0.65415985,1143.6,1142.1,0.65378171]
[1761599870343,0.65415985,1143.6,1142.0,0.65378171]
[1761599870942,0.65415985,1143.6,1142.1,0.65378171]
[1761599872044,0.65415985,1143.5,1142.2,0.65378171]
[1761599873144,0.65415985,1143.6,1142.3,0.65378171]
[1761599875147,0.65415985,1143.5,1142.3,0.65378171]
[1761599876049,0.65415985,1143.5,1142.4,0.65378171]
[1761599876247,0.65415985,1143.7,1142.2,0.65378171]
[1761599878251,0.65415985,1143.7,1141.4,0.15225328]
[1761599878252,0.65415985,1143.7,1142.3,0.65378171]
[1761599878553,0.65415985,1143.5,1142.4,0.65378171]
[1761599878850,0.65415985,1143.5,1142.5,0.65378171]
[1761599879252,0.65415985,1143.6,1142.5,0.65378171]
[1761599888861,1.66715985,1143.6,1142.5,0.65378171]
[1761599890163,0.65415985,1143.5,1142.5,0.65378171]
[1761599892260,1.66715985,1143.6,1142.5,0.65378171]
[1761599893863,0.65415985,1143.5,1142.5,0.65378171]
[1761599896368,1.66715985,1143.6,1142.4,0.65378171]
[1761599903573,1.66715985,1143.6,1142.5,0.65378171]
[1761599908282,1.66715985,1143.6,1142.6,0.65378171]
[1761599910180,0.65415985,1143.5,1142.6,0.65378171]
[1761599917291,1.66715985,1143.6,1142.5,0.65378171]
[1761599917490,1.66715985,1143.6,1142.2,0.86794759]
[1761599917491,0.65415985,1143.5,1142.4,0.65378171]
[1761599917690,0.65459107,1143.5,1142.4,0.65346894]
[1761599918091,0.65459107,1143.4,1142.4,0.65346894]
[1761599918290,0.65459107,1143.4,1142.3,0.65346894]
[1761599918491,1.013,1143.6,1142.4,0.65346894]
[1761599918492,0.65459107,1143.3,1142.4,0.65346894]
[1761599918691,1.013,1143.6,1142.3,0.65346894]
[1761599918692,0.65459107,1143.2,1142.3,0.65346894]
[1761599920693,0.65459107,1143.3,1142.3,0.65346894]
[1761599928296,0.65459107,1143.2,1142.3,0.65346894]
[1761599929396,0.65459107,1143.3,1142.3,0.65346894]
[1761599929697,0.86076064,1143.4,1142.1,0.86794759]
[1761599929901,0.65427017,1143.3,1142.3,0.65325405]
[1761599930604,0.65427017,1143.2,1142.3,0.65325405]
[1761599933307,0.65427017,1143.3,1142.3,0.65325405]
[1761599933606,0.65427017,1143.2,1142.3,0.65325405]
[1761599934104,0.65427017,1143.2,1142.2,0.65325405]
[1761599934408,0.863,1143.1,1142.2,0.65325405]
[1761599940513,0.863,1143.1,1142.1,0.65325405]
[1761599941308,0.863,1143.1,1142.0,0.65325405]
[1761599941710,1.51727017,1143.1,1142.1,0.65325405]
[1761599942014,0.65427017,1143.0,1142.0,0.65325405]
[1761599942313,1.51727017,1143.1,1141.9,0.65325405]
[1761599944114,0.863,1143.1,1141.9,0.65325405]
[1761599944311,1.51727017,1143.1,1141.9,0.65325405]
[1761599945114,0.863,1143.1,1141.9,0.65325405]
[1761599945511,1.51727017,1143.1,1141.9,0.65325405]
[1761599947212,1.51727017,1143.1,1141.8,0.65325405]
[1761599947415,0.863,1143.1,1141.8,0.65325405]
[1761599952018,0.863,1143.1,1141.9,0.65325405]
[1761599952019,1.51727017,1143.1,1141.9,0.65325405]
[1761599952622,0.863,1143.1,1141.9,0.65325405]
[1761599956320,0.863,1143.1,1141.8,0.65325405]
[1761599957125,0.863,1143.1,1141.9,0.65325405]
[1761599959125,0.863,1143.1,1141.8,0.65325405]
[1761599959324,0.863,1143.1,1141.9,0.65325405]
[1761599960122,0.863,1143.1,1141.8,0.65325405]
[1761599960322,0.863,1143.1,1141.9,0.65325405]
[1761599961127,0.863,1143.1,1141.8,0.65325405]
[1761599961322,0.863,1143.1,1141.9,0.65325405]
[1761599962326,0.863,1143.1,1141.8,0.65325405]
[1761599962526,0.863,1143.1,1141.9,0.65325405]
[1761599964524,0.863,1143.1,1142.0,0.65325405]
[1761599969326,0.863,1143.1,1142.1,0.65325405]
[1761599975434,1.51727017,1143.1,1142.1,0.65325405]
[1761599977361,0.65427017,1143.0,1142.1,0.65325405]
[1761599979634,0.863,1143.1,1142.1,0.65325405]
[1761599979635,1.51727017,1143.1,1142.1,0.65325405]
[1761599984440,0.65427017,1143.1,1142.1,0.65325405]
[1761599985040,0.65427017,1143.1,1141.9,0.86794759]
[1761599985041,0.65427017,1143.1,1142.0,0.65325405]
[1761599985239,0.65427017,1143.1,1142.1,0.65325405]
[1761599986646,0.65427017,1143.0,1142.1,0.65325405]
[1761599987046,0.95,1142.9,1142.1,0.65325405]
[1761599987246,0.95,1142.9,1141.9,0.65325405]
[1761599988751,0.95,1142.9,1142.0,0.65325405]
[1761599989447,0.95,1142.9,1141.9,0.65325405]
[1761599992448,0.95,1142.9,1142.0,0.65325405]
[1761599997058,0.95,1142.9,1142.1,0.65325405]
[1761599998456,0.95,1142.9,1142.2,0.65325405]
[1761599998656,0.95,1142.9,1142.0,0.86794759]
[1761599998657,0.95,1142.9,1142.3,0.65325405]
[1761599999655,0.95,1142.9,1142.5,0.65325405]
[1761600001360,0.95,1142.9,1142.6,0.65325405]
[1761600003255,0.95,1142.9,1142.3,0.86794759]
[1761600003256,0.95,1142.9,1142.5,0.65325405]
[1761600006159,0.95,1142.9,1142.4,0.65325405]
[1761600010364,0.95,1142.9,1142.6,0.65325405]
[1761600010768,0.95,1142.9,1142.7,0.65325405]
[1761600011267,0.95,1142.9,1142.6,0.65325405]
[1761600020173,0.95,1142.9,1142.5,0.65325405]
[1761600021472,0.95,1142.9,1142.6,0.65325405]
[1761600024176,0.95,1142.9,1142.5,0.65325405]
[1761600025774,0.95,1142.9,1142.6,0.65325405]
[1761600025975,0.95,1142.9,1142.5,0.65325405]
[1761600029882,0.95,1142.9,1142.7,0.65325405]
[1761600032178,0.95,1142.9,1142.6,0.65325405]
[1761600032983,0.95,1142.9,1142.7,0.65325405]
[1761600033481,0.95,1142.9,1142.6,0.65325405]
[1761600033679,0.95,1142.9,1142.7,0.65325405]
[1761600034880,0.95,1142.9,1142.8,0.65325405]
[1761600035184,0.95,1142.9,1142.7,0.65325405]
[1761600035385,0.95,1142.9,1142.8,0.65325405]
[1761600038184,0.95,1142.9,1142.4,1.2964002]
[1761600038384,0.95,1142.9,1141.9,0.15220667]
[1761600038688,0.95,1142.9,1142.6,0.86204722]
[1761600038886,0.95,1142.9,1142.8,0.64653542]
[1761600039185,0.95,1142.9,1142.6,0.86204722]
[1761600039389,0.95,1142.9,1141.9,0.15220667]
[1761600039986,0.95,1142.9,1142.8,0.64656291]
[1761600040289,0.64839774,1144.8,1142.8,0.64656291]
[1761600042587,0.64839774,1144.8,1142.7,0.64656291]
[1761600043289,0.64839774,1144.8,1142.8,0.64656291]
[1761600043792,0.898,1144.7,1142.8,0.64656291]
[1761600044992,0.898,1144.7,1142.7,0.64656291]
[1761600045292,0.898,1144.7,1142.8,0.64656291]
[1761600045491,0.898,1144.7,1142.7,0.64656291]
[1761600045689,1.54639774,1144.7,1142.8,0.64656291]
[1761600050096,0.64839774,1144.6,1142.8,0.64656291]
[1761600050895,1.54639774,1144.7,1142.8,0.64656291]
[1761600054301,0.64839774,1144.6,1142.8,0.64656291]
[1761600055104,0.64839774,1144.6,1142.9,0.64656291]
[1761600057706,0.64839774,1144.5,1142.9,0.64656291]
[1761600058206,0.64839774,1144.6,1142.8,0.64656291]
[1761600060310,0.64839774,1144.5,1142.8,0.64656291]
[1761600061507,0.64839774,1144.2,1142.9,0.64656291]
[1761600065107,0.64839774,1144.1,1142.9,0.64656291]
[1761600065907,0.64839774,1144.1,1142.8,0.64656291]
[1761600066109,0.64839774,1144.0,1142.7,0.64656291]
[1761600066507,0.64839774,1144.0,1142.6,0.64656291]
[1761600066911,0.64839774,1143.8,1142.5,0.64656291]
[1761600070207,0.64839774,1143.7,1142.5,0.64656291]
[1761600072212,0.64839774,1143.7,1142.4,0.64656291]
[1761600075109,0.64839774,1143.6,1142.3,0.64656291]
[1761600075312,0.64839774,1143.7,1142.3,0.64656291]
[1761600075812,0.64839774,1143.6,1142.3,0.64656291]
[1761600077212,0.64839774,1143.7,1142.3,0.64656291]
[1761600077413,0.64839774,1143.8,1142.3,0.64656291]
[1761600078114,0.64839774,1143.8,1142.4,0.64656291]
[1761600079213,0.64839774,1143.9,1142.5,0.64656291]
[1761600079418,0.64839774,1144.0,1142.6,0.64656291]
[1761600085621,0.682,1143.9,1142.6,0.64656291]
[1761600088326,0.682,1143.9,1142.5,0.64656291]
[1761600088821,0.682,1143.9,1142.6,0.64656291]
[1761600090220,0.682,1143.9,1142.5,0.64656291]
[1761600097521,1.33039774,1143.9,1142.5,0.64656291]
[1761600105129,0.682,1143.9,1142.5,0.64656291]
[1761600108232,0.682,1143.9,1142.4,0.64656291]
[1761600108431,0.682,1143.9,1142.5,0.64656291]
[1761600109630,0.682,1143.9,1142.6,0.64656291]
[1761600110730,0.682,1143.9,1143.0,0.64656291]
[1761600111335,0.682,1143.9,1142.9,0.64656291]
[1761600111635,0.682,1143.9,1143.0,0.64656291]
[1761600123842,0.682,1143.9,1141.9,0.15220667]
[1761600123843,0.682,1143.9,1142.6,0.64656291]
[1761600124840,1.33039774,1143.9,1142.6,0.64656291]
[1761600126042,0.64839774,1143.8,1142.5,0.64656291]
[1761600127944,0.64839774,1143.8,1142.4,0.64656291]
[1761600128247,0.64839774,1143.7,1142.3,0.64656291]
[1761600128645,0.64839774,1143.7,1142.2,0.64656291]
[1761600128843,0.64839774,1143.5,1142.2,0.64656291]
[1761600129450,0.64839774,1143.3,1142.1,0.64656291]
[1761600129648,0.64839774,1143.3,1142.0,0.64656291]
[1761600130147,0.64839774,1143.3,1141.9,0.79876958]
[1761600134253,0.64839774,1143.4,1141.9,0.79876958]
[1761600135252,0.64839774,1143.3,1141.9,0.15220667]
[1761600136153,0.64839774,1143.4,1141.9,0.15220667]
[1761600142256,0.64839774,1143.5,1141.9,0.15220667]
[1761600149371,0.64839774,1143.6,1141.9,0.15220667]
[1761600165078,0.64839774,1143.8,1141.9,0.15220667]
[1761600165283,0.64839774,1144.0,1141.9,0.79876958]
[1761600165483,0.64839774,1144.0,1141.9,0.15220667]
[1761600166381,0.64839774,1143.9,1141.9,0.79876958]
[1761600166684,0.64839774,1144.0,1141.9,0.15220667]
[1761600167186,0.64839774,1143.9,1141.9,0.79876958]
[1761600167386,0.64839774,1143.9,1141.9,0.15220667]
[1761600168489,0.909,1143.8,1141.9,0.15220667]
[1761600170492,0.64839774,1143.7,1141.9,0.15220667]
[1761600172692,0.64839774,1143.6,1141.9,0.15220667]
[1761600173488,0.64839774,1143.5,1141.9,0.15220667]
[1761600177598,0.64839774,1143.4,1141.9,0.15220667]
[1761600178297,0.64839774,1143.3,1141.9,0.15220667]
[1761600179197,0.64839774,1143.4,1141.9,0.15220667]
[1761600179397,0.64839774,1143.3,1141.9,0.15220667]
[1761600180397,0.64839774,1143.4,1141.9,0.15220667]
[1761600182897,0.64839774,1143.3,1141.9,0.79876958]
[1761600183094,0.64839774,1143.5,1142.1,0.64656291]
[1761600183395,0.64839774,1143.3,1142.1,0.64656291]
[1761600183598,0.64839774,1143.3,1142.0,0.64656291]
[1761600184398,0.64839774,1143.2,1142.1,0.64656291]
[1761600186296,0.64839774,1143.1,1142.1,0.64656291]
[1761600187302,0.64839774,1143.2,1142.1,0.64656291]
[1761600187501,0.64839774,1143.1,1142.1,0.64656291]
[1761600188498,0.64839774,1143.0,1142.1,0.64656291]
[1761600189900,0.64839774,1142.9,1141.9,0.79876958]
[1761600190103,0.64839774,1142.7,1141.9,0.15220667]
[1761600194404,0.86453032,1142.9,1141.9,0.15220667]
[1761600194405,0.64839774,1142.8,1141.9,0.15220667]
[1761600194905,0.64839774,1142.9,1141.9,0.15220667]
[1761600196106,0.64839774,1142.9,1141.6,0.64656291]
[1761600196410,0.64839774,1142.9,1141.7,0.15235794]
[1761600197310,0.64839774,1142.9,1141.5,0.64656291]
[1761600197607,0.64839774,1142.9,1141.5,0.79893285]
[1761600198209,0.64839774,1142.9,1141.5,0.15236994]
[1761600199207,0.64839774,1142.8,1141.5,0.15236994]
[1761600200012,0.64839774,1142.7,1141.5,0.79893285]
[1761600201309,0.64839774,1142.7,1141.5,0.15236994]
[1761600202512,0.64839774,1142.8,1141.5,0.15236994]
[1761600202713,0.64839774,1142.7,1141.5,0.15236994]
[1761600203213,0.907,1142.6,1141.5,0.15236994]
[1761600215421,0.65193319,1142.5,1140.9,0.65159446]
[1761600215723,0.65193319,1142.5,1141.2,0.15242133]
[1761600216323,0.65193319,1142.4,1141.2,0.15242133]
[1761600216520,0.65193319,1142.5,1141.2,0.15242133]
[1761600217427,0.65193319,1142.4,1141.2,0.15242133]
[1761600218022,0.65193319,1142.2,1140.5,0.65159446]
[1761600218226,0.65193319,1141.9,1140.6,0.15246674]
[1761600218422,0.65193319,1142.0,1140.6,0.15246674]
[1761600218726,0.65193319,1142.1,1140.6,0.15246674]
[1761600219023,0.86453032,1142.0,1140.0,0.65159446]
[1761600219321,0.65193319,1141.6,1140.3,0.15252956]
[1761600219525,0.65193319,1141.7,1139.3,0.65159446]
[1761600219825,0.65193319,1141.7,1139.0,0.86208389]
[1761600219826,0.65193319,1141.6,1139.8,0.15259343]
[1761600220825,0.65193319,1141.3,1139.8,0.15259343]
[1761600221327,0.65193319,1141.5,1139.8,0.15259343]
[1761600221823,0.65193319,1141.4,1139.8,0.15259343]
[1761600222223,0.65193319,1141.5,1139.8,0.15259343]
[1761600222628,0.65193319,1141.7,1139.8,0.15259343]